[Event "Titled Tuesday Blitz November 22 Late 2022"]
[White "Aggelis, Nikolaos"]
[Black "Weetik, Vjacheslav"]
[WhiteFideId "4213220"]
[BlackFideId "4153472"]
[WhiteElo "2189"]
[BlackElo "2469"]
[Result "1-0"]
[Round "07"]
[TimeControl "180+1"]
[Date "2022.11.23"]
[WhiteClock "0:00:44"]
[BlackClock "0:00:06"]

1. Nf3 {[%clk 0:03:00]}  Nf6 {[%clk 0:02:58]} 2. d4 {[%clk 0:03:00]}  g6 {[%clk 0:02:57]} 3. g3 {[%clk 0:03:01]}  Bg7 {[%clk 0:02:57]} 4. Bg2 {[%clk 0:03:01]}  O-O {[%clk 0:02:57]} 5. O-O {[%clk 0:03:02]}  d5 {[%clk 0:02:57]} 6. b3 {[%clk 0:03:03]}  c5 {[%clk 0:02:54]} 7. dxc5 {[%clk 0:03:03]}  Ne4 {[%clk 0:02:53]} 8. c3 {[%clk 0:03:01]}  Nxc5 {[%clk 0:02:51]} 9. Bb2 {[%clk 0:02:56]}  Nc6 {[%clk 0:02:45]} 10. Nd4 {[%clk 0:02:54]}  Nxd4 {[%clk 0:02:16]} 11. cxd4 {[%clk 0:02:54]}  Ne4 {[%clk 0:02:16]} 12. Nd2 {[%clk 0:02:53]}  Nf6 {[%clk 0:02:08]} 13. Rc1 {[%clk 0:02:45]}  Bf5 {[%clk 0:02:05]} 14. b4 {[%clk 0:02:32]}  Qd6 {[%clk 0:01:53]} 15. Qb3 {[%clk 0:02:29]}  Rac8 {[%clk 0:01:52]} 16. Qa3 {[%clk 0:02:25]}  a6 {[%clk 0:01:38]} 17. Nb3 {[%clk 0:02:25]}  Ne4 {[%clk 0:01:36]} 18. Nc5 {[%clk 0:02:23]}  Nd2 {[%clk 0:01:31]} 19. Rfd1 {[%clk 0:02:17]}  Nc4 {[%clk 0:01:30]} 20. Rxc4 {[%clk 0:02:07]}  dxc4 {[%clk 0:01:30]} 21. Bxb7 {[%clk 0:01:59]}  Rcd8 {[%clk 0:01:03]} 22. Qxa6 {[%clk 0:01:56]}  Qb8 {[%clk 0:00:57]} 23. Qxc4 {[%clk 0:01:52]}  Rd6 {[%clk 0:00:38]} 24. Bf3 {[%clk 0:01:48]}  Bh3 {[%clk 0:00:34]} 25. a4 {[%clk 0:01:41]}  Rfd8 {[%clk 0:00:34]} 26. e3 {[%clk 0:01:38]}  e5 {[%clk 0:00:30]} 27. d5 {[%clk 0:01:37]}  h5 {[%clk 0:00:26]} 28. e4 {[%clk 0:01:31]}  Qc7 {[%clk 0:00:21]} 29. a5 {[%clk 0:01:31]}  Qe7 {[%clk 0:00:21]} 30. Bc3 {[%clk 0:01:20]}  Rc8 {[%clk 0:00:20]} 31. Qd3 {[%clk 0:01:04]}  h4 {[%clk 0:00:19]} 32. Bd2 {[%clk 0:01:00]}  Bf6 {[%clk 0:00:15]} 33. Ra1 {[%clk 0:00:57]}  Kg7 {[%clk 0:00:15]} 34. a6 {[%clk 0:00:57]}  Rh8 {[%clk 0:00:15]} 35. a7 {[%clk 0:00:56]}  Rdd8 {[%clk 0:00:16]} 36. Be3 {[%clk 0:00:54]}  hxg3 {[%clk 0:00:16]} 37. hxg3 {[%clk 0:00:54]}  Ra8 {[%clk 0:00:07]} 38. d6 {[%clk 0:00:51]}  Rxa7 {[%clk 0:00:07]} 39. Rxa7 {[%clk 0:00:44]}  Qxa7 {[%clk 0:00:06]} 40. Ne6+ {[%clk 0:00:44]}  Bxe6 {[%clk 0:00:06]} 41. Bxa7 {[%clk 0:00:44]} 1-0


[Site "https://www.chess.com"]

[Event "Titled Tuesday Blitz November 22 Late 2022"]
[White "Al-Tarboush, Ward"]
[Black "Bogaudinov, Rushan"]
[WhiteFideId "7601450"]
[BlackFideId "4129288"]
[WhiteElo "2273"]
[BlackElo "1997"]
[Result "1-0"]
[Round "07"]
[TimeControl "180+1"]
[Date "2022.11.23"]
[WhiteClock "0:00:37"]
[BlackClock "0:00:06"]

1. e4 {[%clk 0:03:00]}  a6 {[%clk 0:02:59]} 2. Ke2 {[%clk 0:02:59]}  b5 {[%clk 0:02:58]} 3. Kf3 {[%clk 0:02:59]}  Bb7 {[%clk 0:02:57]} 4. d3 {[%clk 0:02:59]}  e6 {[%clk 0:02:51]} 5. g3 {[%clk 0:02:59]}  d5 {[%clk 0:02:50]} 6. Nd2 {[%clk 0:02:56]}  Nf6 {[%clk 0:02:48]} 7. Qe2 {[%clk 0:02:55]}  Nbd7 {[%clk 0:02:46]} 8. Kg2 {[%clk 0:02:54]}  Nc5 {[%clk 0:02:39]} 9. f3 {[%clk 0:02:54]}  Be7 {[%clk 0:02:38]} 10. Nh3 {[%clk 0:02:54]}  O-O {[%clk 0:02:38]} 11. Nf2 {[%clk 0:02:54]}  e5 {[%clk 0:02:16]} 12. b3 {[%clk 0:02:47]}  d4 {[%clk 0:02:07]} 13. h4 {[%clk 0:02:45]}  a5 {[%clk 0:02:04]} 14. g4 {[%clk 0:02:40]}  a4 {[%clk 0:02:02]} 15. b4 {[%clk 0:02:39]}  Ne6 {[%clk 0:01:58]} 16. Nh3 {[%clk 0:02:37]}  Bxb4 {[%clk 0:01:56]} 17. f4 {[%clk 0:02:35]}  exf4 {[%clk 0:01:52]} 18. g5 {[%clk 0:02:34]}  Nd7 {[%clk 0:01:47]} 19. Nf3 {[%clk 0:02:33]}  Bd6 {[%clk 0:01:40]} 20. Kf2 {[%clk 0:02:26]}  c5 {[%clk 0:01:30]} 21. Bg2 {[%clk 0:02:26]}  Qc7 {[%clk 0:01:26]} 22. Bd2 {[%clk 0:02:25]}  c4 {[%clk 0:01:21]} 23. Rag1 {[%clk 0:02:22]}  c3 {[%clk 0:01:07]} 24. Bc1 {[%clk 0:02:21]}  b4 {[%clk 0:01:07]} 25. Bf1 {[%clk 0:02:21]}  b3 {[%clk 0:01:06]} 26. axb3 {[%clk 0:02:19]}  axb3 {[%clk 0:01:06]} 27. cxb3 {[%clk 0:02:18]}  Ba6 {[%clk 0:00:49]} 28. h5 {[%clk 0:02:17]}  Ndc5 {[%clk 0:00:48]} 29. Ne1 {[%clk 0:02:17]}  Nxb3 {[%clk 0:00:41]} 30. Qc2 {[%clk 0:02:15]}  Nxc1 {[%clk 0:00:39]} 31. Qxc1 {[%clk 0:02:16]}  Rab8 {[%clk 0:00:38]} 32. g6 {[%clk 0:02:15]}  Rb2+ {[%clk 0:00:37]} 33. Kf3 {[%clk 0:02:14]}  fxg6 {[%clk 0:00:35]} 34. hxg6 {[%clk 0:02:14]}  h6 {[%clk 0:00:34]} 35. Nf2 {[%clk 0:01:52]}  Ng5+ {[%clk 0:00:29]} 36. Rxg5 {[%clk 0:01:52]}  hxg5 {[%clk 0:00:29]} 37. Bh3 {[%clk 0:01:52]}  Bc8 {[%clk 0:00:28]} 38. Bxc8 {[%clk 0:01:46]}  Qxc8 {[%clk 0:00:28]} 39. Ng4 {[%clk 0:01:47]}  Rf6 {[%clk 0:00:24]} 40. Nc2 {[%clk 0:01:24]}  Qa6 {[%clk 0:00:19]} 41. Rh8+ {[%clk 0:00:59]}  Kxh8 {[%clk 0:00:16]} 42. Qh1+ {[%clk 0:01:00]}  Kg8 {[%clk 0:00:16]} 43. Qh7+ {[%clk 0:01:00]}  Kf8 {[%clk 0:00:16]} 44. Qh8+ {[%clk 0:00:59]}  Ke7 {[%clk 0:00:15]} 45. Qxg7+ {[%clk 0:00:56]}  Kd8 {[%clk 0:00:14]} 46. Qxf6+ {[%clk 0:00:56]}  Kc8 {[%clk 0:00:12]} 47. Qxd4 {[%clk 0:00:41]}  Rxc2 {[%clk 0:00:10]} 48. g7 {[%clk 0:00:41]}  Qa7 {[%clk 0:00:06]} 49. g8=Q+ {[%clk 0:00:37]} 1-0


[Site "https://www.chess.com"]

[Event "Titled Tuesday Blitz November 22 Late 2022"]
[White "Antonio, Jorge Carlos"]
[Black "Castillo Pena, Patricia Evarista"]
[WhiteFideId "113190"]
[BlackFideId "6412106"]
[WhiteElo "2247"]
[BlackElo "1919"]
[Result "1-0"]
[Round "07"]
[TimeControl "180+1"]
[Date "2022.11.23"]
[WhiteClock "0:00:18"]
[BlackClock "0:00:01"]

1. d4 {[%clk 0:03:00]}  d5 {[%clk 0:02:59]} 2. Nf3 {[%clk 0:03:00]}  Nf6 {[%clk 0:02:55]} 3. Bf4 {[%clk 0:02:59]}  c5 {[%clk 0:02:53]} 4. e3 {[%clk 0:02:58]}  Nc6 {[%clk 0:02:53]} 5. c3 {[%clk 0:02:58]}  Qb6 {[%clk 0:02:51]} 6. Qb3 {[%clk 0:02:56]}  c4 {[%clk 0:02:51]} 7. Qc2 {[%clk 0:02:47]}  Bf5 {[%clk 0:02:49]} 8. Qc1 {[%clk 0:02:41]}  e6 {[%clk 0:02:47]} 9. Nbd2 {[%clk 0:02:37]}  Rc8 {[%clk 0:02:47]} 10. Nh4 {[%clk 0:02:26]}  Be4 {[%clk 0:02:28]} 11. f3 {[%clk 0:02:23]}  Bg6 {[%clk 0:02:28]} 12. e4 {[%clk 0:02:17]}  Be7 {[%clk 0:02:21]} 13. Nxg6 {[%clk 0:02:13]}  hxg6 {[%clk 0:02:21]} 14. Be3 {[%clk 0:02:10]}  Qc7 {[%clk 0:02:14]} 15. e5 {[%clk 0:02:07]}  Nd7 {[%clk 0:02:07]} 16. f4 {[%clk 0:02:04]}  b5 {[%clk 0:01:55]} 17. Nf3 {[%clk 0:01:58]}  a5 {[%clk 0:01:54]} 18. Be2 {[%clk 0:01:54]}  b4 {[%clk 0:01:54]} 19. O-O {[%clk 0:01:51]}  a4 {[%clk 0:01:31]} 20. Qd2 {[%clk 0:01:38]}  a3 {[%clk 0:01:27]} 21. Rfc1 {[%clk 0:01:33]}  Qa5 {[%clk 0:01:24]} 22. b3 {[%clk 0:01:27]}  bxc3 {[%clk 0:01:22]} 23. Qxc3 {[%clk 0:01:23]}  Bb4 {[%clk 0:01:21]} 24. Qc2 {[%clk 0:01:17]}  cxb3 {[%clk 0:01:17]} 25. Qxb3 {[%clk 0:01:10]}  O-O {[%clk 0:01:16]} 26. Rab1 {[%clk 0:01:05]}  Be7 {[%clk 0:01:10]} 27. Qb7 {[%clk 0:01:00]}  Rc7 {[%clk 0:01:04]} 28. Rxc6 {[%clk 0:00:49]}  Rxb7 {[%clk 0:01:01]} 29. Rxb7 {[%clk 0:00:47]}  Rd8 {[%clk 0:00:53]} 30. Rcc7 {[%clk 0:00:42]}  Qa4 {[%clk 0:00:45]} 31. Bd2 {[%clk 0:00:34]}  Bf8 {[%clk 0:00:30]} 32. Bb5 {[%clk 0:00:30]}  Qd1+ {[%clk 0:00:29]} 33. Kf2 {[%clk 0:00:24]}  Nb8 {[%clk 0:00:16]} 34. Rc1 {[%clk 0:00:19]}  Qxc1 {[%clk 0:00:02]} 35. Bxc1 {[%clk 0:00:19]}  Rc8 {[%clk 0:00:01]} 36. Be3 {[%clk 0:00:18]} 1-0


[Site "https://www.chess.com"]

[Event "Titled Tuesday Blitz November 22 Late 2022"]
[White "Arbunic Castro, Giovanna"]
[Black "Marchesich, Giovanni"]
[WhiteFideId "3400549"]
[BlackFideId "2824790"]
[WhiteElo "1984"]
[BlackElo "2200"]
[Result "1-0"]
[Round "07"]
[TimeControl "180+1"]
[Date "2022.11.23"]
[WhiteClock "0:00:11"]
[BlackClock "0:00:37"]

1. e4 {[%clk 0:03:00]}  e5 {[%clk 0:02:04]} 2. d4 {[%clk 0:02:59]}  d6 {[%clk 0:02:04]} 3. Bc4 {[%clk 0:02:56]}  exd4 {[%clk 0:02:01]} 4. Qxd4 {[%clk 0:02:53]}  Nc6 {[%clk 0:02:00]} 5. Qe3 {[%clk 0:02:53]}  Nf6 {[%clk 0:01:59]} 6. Nc3 {[%clk 0:02:52]}  g6 {[%clk 0:01:51]} 7. Bd2 {[%clk 0:02:51]}  Bg7 {[%clk 0:01:51]} 8. O-O-O {[%clk 0:02:50]}  O-O {[%clk 0:01:52]} 9. h4 {[%clk 0:02:50]}  Re8 {[%clk 0:01:51]} 10. f3 {[%clk 0:02:48]}  a6 {[%clk 0:01:41]} 11. g4 {[%clk 0:02:47]}  b5 {[%clk 0:01:41]} 12. Bb3 {[%clk 0:02:45]}  Nd7 {[%clk 0:01:35]} 13. h5 {[%clk 0:02:40]}  Nc5 {[%clk 0:01:23]} 14. hxg6 {[%clk 0:02:36]}  Nxb3+ {[%clk 0:01:22]} 15. axb3 {[%clk 0:02:31]}  fxg6 {[%clk 0:01:23]} 16. Qf2 {[%clk 0:02:22]}  Be6 {[%clk 0:01:22]} 17. Qh2 {[%clk 0:02:19]}  h6 {[%clk 0:01:16]} 18. Bxh6 {[%clk 0:02:16]}  Qf6 {[%clk 0:01:16]} 19. Bxg7 {[%clk 0:01:52]}  Qxg7 {[%clk 0:01:15]} 20. Nge2 {[%clk 0:01:50]}  Ne5 {[%clk 0:01:09]} 21. Qg3 {[%clk 0:01:28]}  g5 {[%clk 0:01:07]} 22. Nd4 {[%clk 0:01:27]}  Re7 {[%clk 0:01:02]} 23. Nf5 {[%clk 0:01:25]}  Bxf5 {[%clk 0:01:02]} 24. gxf5 {[%clk 0:01:25]}  Nf7 {[%clk 0:00:48]} 25. f6 {[%clk 0:01:18]}  Qxf6 {[%clk 0:00:48]} 26. Nd5 {[%clk 0:01:18]}  Qe5 {[%clk 0:00:46]} 27. Nxe7+ {[%clk 0:01:15]}  Qxe7 {[%clk 0:00:45]} 28. Qh3 {[%clk 0:01:11]}  Qf6 {[%clk 0:00:44]} 29. Qh7+ {[%clk 0:01:09]}  Kf8 {[%clk 0:00:44]} 30. Rd5 {[%clk 0:01:00]}  Ke7 {[%clk 0:00:40]} 31. Rf5 {[%clk 0:00:58]}  Rh8 {[%clk 0:00:39]} 32. Rxf6 {[%clk 0:00:49]}  Rxh7 {[%clk 0:00:39]} 33. Rxh7 {[%clk 0:00:47]}  Kxf6 {[%clk 0:00:39]} 34. Kd2 {[%clk 0:00:39]}  Kg6 {[%clk 0:00:40]} 35. Rh1 {[%clk 0:00:37]}  Ne5 {[%clk 0:00:40]} 36. Ke3 {[%clk 0:00:37]}  Kf6 {[%clk 0:00:40]} 37. Rh7 {[%clk 0:00:34]}  c5 {[%clk 0:00:36]} 38. Ra7 {[%clk 0:00:32]}  Ng6 {[%clk 0:00:33]} 39. Rxa6 {[%clk 0:00:30]}  Ke5 {[%clk 0:00:34]} 40. Rb6 {[%clk 0:00:28]}  b4 {[%clk 0:00:34]} 41. c3 {[%clk 0:00:28]}  bxc3 {[%clk 0:00:34]} 42. bxc3 {[%clk 0:00:27]}  Nf4 {[%clk 0:00:35]} 43. b4 {[%clk 0:00:25]}  Ng2+ {[%clk 0:00:35]} 44. Kf2 {[%clk 0:00:24]}  cxb4 {[%clk 0:00:34]} 45. cxb4 {[%clk 0:00:23]}  Nf4 {[%clk 0:00:34]} 46. Rb5+ {[%clk 0:00:22]}  Kd4 {[%clk 0:00:34]} 47. Rf5 {[%clk 0:00:19]}  Kc4 {[%clk 0:00:33]} 48. Rxf4 {[%clk 0:00:17]}  gxf4 {[%clk 0:00:33]} 49. Kg2 {[%clk 0:00:16]}  Kxb4 {[%clk 0:00:33]} 50. Kh3 {[%clk 0:00:16]}  Kc3 {[%clk 0:00:34]} 51. Kg4 {[%clk 0:00:16]}  Kd4 {[%clk 0:00:34]} 52. Kxf4 {[%clk 0:00:16]}  d5 {[%clk 0:00:35]} 53. e5 {[%clk 0:00:16]}  Kc5 {[%clk 0:00:35]} 54. e6 {[%clk 0:00:14]}  Kd6 {[%clk 0:00:36]} 55. Kf5 {[%clk 0:00:14]}  d4 {[%clk 0:00:36]} 56. Kf6 {[%clk 0:00:13]}  d3 {[%clk 0:00:36]} 57. e7 {[%clk 0:00:13]}  d2 {[%clk 0:00:36]} 58. e8=Q {[%clk 0:00:11]}  d1=Q {[%clk 0:00:37]} 59. Qd8+ {[%clk 0:00:11]} 1-0


[Site "https://www.chess.com"]

[Event "Titled Tuesday Blitz November 22 Late 2022"]
[White "Banzea, Alexandru-Bogdan"]
[Black "Gadimbayli, Abdulla"]
[WhiteFideId "1232622"]
[BlackFideId "13404938"]
[WhiteElo "2294"]
[BlackElo "2399"]
[Result "0-1"]
[Round "07"]
[TimeControl "180+1"]
[Date "2022.11.22"]
[WhiteClock "0:00:03"]
[BlackClock "0:00:12"]

1. d4 {[%clk 0:03:00]}  d5 {[%clk 0:02:55]} 2. Nf3 {[%clk 0:03:00]}  Nc6 {[%clk 0:02:55]} 3. Bf4 {[%clk 0:03:01]}  Nf6 {[%clk 0:02:55]} 4. e3 {[%clk 0:03:01]}  Nh5 {[%clk 0:02:54]} 5. Be5 {[%clk 0:02:56]}  Nxe5 {[%clk 0:02:54]} 6. dxe5 {[%clk 0:02:57]}  c6 {[%clk 0:02:51]} 7. c4 {[%clk 0:02:55]}  g6 {[%clk 0:02:32]} 8. Nc3 {[%clk 0:02:54]}  e6 {[%clk 0:02:32]} 9. Qc2 {[%clk 0:02:50]}  Be7 {[%clk 0:02:27]} 10. O-O-O {[%clk 0:02:49]}  Qa5 {[%clk 0:02:27]} 11. g4 {[%clk 0:02:48]}  Ng7 {[%clk 0:02:27]} 12. h4 {[%clk 0:02:49]}  h5 {[%clk 0:02:28]} 13. Rg1 {[%clk 0:02:28]}  Bd7 {[%clk 0:02:22]} 14. Ng5 {[%clk 0:02:19]}  hxg4 {[%clk 0:02:15]} 15. Rxg4 {[%clk 0:02:18]}  Nf5 {[%clk 0:02:15]} 16. cxd5 {[%clk 0:01:51]}  cxd5 {[%clk 0:02:13]} 17. Nf3 {[%clk 0:01:38]}  Rc8 {[%clk 0:02:11]} 18. Kb1 {[%clk 0:01:37]}  Bb4 {[%clk 0:02:06]} 19. Rc1 {[%clk 0:00:57]}  Bxc3 {[%clk 0:02:02]} 20. bxc3 {[%clk 0:00:58]}  Rc6 {[%clk 0:01:46]} 21. Ka1 {[%clk 0:00:57]}  Ke7 {[%clk 0:01:46]} 22. Nd4 {[%clk 0:00:52]}  Nxd4 {[%clk 0:01:42]} 23. exd4 {[%clk 0:00:53]}  Rhc8 {[%clk 0:01:42]} 24. Rg3 {[%clk 0:00:54]}  Rb6 {[%clk 0:01:35]} 25. Qd2 {[%clk 0:00:49]}  Bb5 {[%clk 0:01:23]} 26. Qg5+ {[%clk 0:00:49]}  Ke8 {[%clk 0:01:23]} 27. h5 {[%clk 0:00:21]}  Bc4 {[%clk 0:01:06]} 28. Bxc4 {[%clk 0:00:19]}  Rxc4 {[%clk 0:01:07]} 29. Qd2 {[%clk 0:00:14]}  gxh5 {[%clk 0:00:44]} 30. Rg8+ {[%clk 0:00:15]}  Kd7 {[%clk 0:00:44]} 31. Rf8 {[%clk 0:00:15]}  Rc7 {[%clk 0:00:20]} 32. Rxf7+ {[%clk 0:00:15]}  Kc6 {[%clk 0:00:21]} 33. Rf6 {[%clk 0:00:11]}  Kb5 {[%clk 0:00:19]} 34. Qe2+ {[%clk 0:00:09]}  Rc4 {[%clk 0:00:17]} 35. Rb1+ {[%clk 0:00:09]}  Ka6 {[%clk 0:00:18]} 36. Rxb6+ {[%clk 0:00:09]}  axb6 {[%clk 0:00:17]} 37. Qb2 {[%clk 0:00:07]}  Rxc3 {[%clk 0:00:14]} 38. Rxe6 {[%clk 0:00:07]}  Rc4 {[%clk 0:00:13]} 39. Qe2 {[%clk 0:00:03]}  Qc3+ {[%clk 0:00:12]} 0-1


[Site "https://www.chess.com"]

[Event "Titled Tuesday Blitz November 22 Late 2022"]
[White "Boruchovsky, Avital"]
[Black "Annaberdiyev, Babageldi"]
[WhiteFideId "2800055"]
[BlackFideId "14000385"]
[WhiteElo "2458"]
[BlackElo "2332"]
[Result "1-0"]
[Round "07"]
[TimeControl "180+1"]
[Date "2022.11.22"]
[WhiteClock "0:00:01"]
[BlackClock "0:00:06"]

1. d4 {[%clk 0:02:55]}  Nf6 {[%clk 0:02:59]} 2. Nf3 {[%clk 0:02:55]}  e6 {[%clk 0:02:55]} 3. g3 {[%clk 0:02:53]}  d5 {[%clk 0:02:53]} 4. Bg2 {[%clk 0:02:53]}  c6 {[%clk 0:02:52]} 5. O-O {[%clk 0:02:52]}  Bd6 {[%clk 0:02:52]} 6. Nc3 {[%clk 0:02:47]}  O-O {[%clk 0:02:49]} 7. Re1 {[%clk 0:02:47]}  a5 {[%clk 0:02:42]} 8. e4 {[%clk 0:02:46]}  Nxe4 {[%clk 0:02:39]} 9. Nxe4 {[%clk 0:02:47]}  dxe4 {[%clk 0:02:40]} 10. Rxe4 {[%clk 0:02:47]}  Nd7 {[%clk 0:02:31]} 11. c3 {[%clk 0:02:40]}  b6 {[%clk 0:02:19]} 12. Bg5 {[%clk 0:02:38]}  Qc7 {[%clk 0:02:16]} 13. Qc2 {[%clk 0:02:35]}  Bb7 {[%clk 0:02:13]} 14. Rae1 {[%clk 0:02:27]}  Rfe8 {[%clk 0:02:06]} 15. Bf4 {[%clk 0:01:41]}  Bxf4 {[%clk 0:02:02]} 16. Rxf4 {[%clk 0:01:42]}  Nf8 {[%clk 0:01:58]} 17. Ne5 {[%clk 0:01:39]}  f6 {[%clk 0:01:55]} 18. Ng4 {[%clk 0:01:31]}  Rad8 {[%clk 0:01:47]} 19. Ne3 {[%clk 0:01:23]}  Ng6 {[%clk 0:01:42]} 20. Re4 {[%clk 0:01:11]}  c5 {[%clk 0:01:38]} 21. d5 {[%clk 0:01:07]}  exd5 {[%clk 0:01:30]} 22. Rxe8+ {[%clk 0:00:31]}  Rxe8 {[%clk 0:01:31]} 23. Rd1 {[%clk 0:00:31]}  Kh8 {[%clk 0:01:06]} 24. Nxd5 {[%clk 0:00:30]}  Bxd5 {[%clk 0:01:05]} 25. Bxd5 {[%clk 0:00:31]}  Rd8 {[%clk 0:01:01]} 26. Be4 {[%clk 0:00:26]}  Rxd1+ {[%clk 0:01:02]} 27. Qxd1 {[%clk 0:00:27]}  Ne5 {[%clk 0:00:58]} 28. Qd5 {[%clk 0:00:25]}  g6 {[%clk 0:00:55]} 29. Qe6 {[%clk 0:00:22]}  Kg7 {[%clk 0:00:54]} 30. h4 {[%clk 0:00:10]}  b5 {[%clk 0:00:50]} 31. h5 {[%clk 0:00:08]}  c4 {[%clk 0:00:47]} 32. h6+ {[%clk 0:00:07]}  Kxh6 {[%clk 0:00:41]} 33. Qxf6 {[%clk 0:00:08]}  Qc5 {[%clk 0:00:39]} 34. Kg2 {[%clk 0:00:06]}  b4 {[%clk 0:00:34]} 35. Kh3 {[%clk 0:00:05]}  Qc8+ {[%clk 0:00:26]} 36. Kg2 {[%clk 0:00:04]}  Qc5 {[%clk 0:00:25]} 37. f3 {[%clk 0:00:05]}  bxc3 {[%clk 0:00:22]} 38. bxc3 {[%clk 0:00:06]}  Nd3 {[%clk 0:00:21]} 39. Kh3 {[%clk 0:00:04]}  Nf2+ {[%clk 0:00:19]} 40. Kg2 {[%clk 0:00:05]}  Nxe4 {[%clk 0:00:20]} 41. Qf4+ {[%clk 0:00:04]}  Ng5 {[%clk 0:00:19]} 42. g4 {[%clk 0:00:04]}  Kg7 {[%clk 0:00:17]} 43. Qb8 {[%clk 0:00:04]}  Nf7 {[%clk 0:00:18]} 44. Qf4 {[%clk 0:00:04]}  Qe5 {[%clk 0:00:18]} 45. Qxc4 {[%clk 0:00:04]}  Qe3 {[%clk 0:00:17]} 46. Qc6 {[%clk 0:00:03]}  Qe2+ {[%clk 0:00:17]} 47. Kg3 {[%clk 0:00:03]}  Qe5+ {[%clk 0:00:18]} 48. Kg2 {[%clk 0:00:04]}  g5 {[%clk 0:00:18]} 49. c4 {[%clk 0:00:03]}  h5 {[%clk 0:00:19]} 50. gxh5 {[%clk 0:00:02]}  Qe2+ {[%clk 0:00:20]} 51. Kg3 {[%clk 0:00:02]}  Qe5+ {[%clk 0:00:20]} 52. Kg2 {[%clk 0:00:03]}  Qe2+ {[%clk 0:00:20]} 53. Kg3 {[%clk 0:00:03]}  Qxa2 {[%clk 0:00:18]} 54. Qg6+ {[%clk 0:00:02]}  Kf8 {[%clk 0:00:18]} 55. h6 {[%clk 0:00:03]}  Qb2 {[%clk 0:00:18]} 56. h7 {[%clk 0:00:03]}  Qh8 {[%clk 0:00:16]} 57. c5 {[%clk 0:00:02]}  Qe5+ {[%clk 0:00:13]} 58. Kg2 {[%clk 0:00:02]}  Qe2+ {[%clk 0:00:13]} 59. Kg3 {[%clk 0:00:03]}  Qe5+ {[%clk 0:00:13]} 60. Kh3 {[%clk 0:00:02]}  Qxc5 {[%clk 0:00:06]} 61. Qxf7+ {[%clk 0:00:01]}  Kxf7 {[%clk 0:00:06]} 62. h8=Q {[%clk 0:00:02]}  Qe5 {[%clk 0:00:06]} 63. Qxe5 {[%clk 0:00:01]} 1-0


[Site "https://www.chess.com"]

[Event "Titled Tuesday Blitz November 22 Late 2022"]
[White "Brown, Andrew"]
[Black "Ferreira, Vitor Hugo Vieira"]
[WhiteFideId "3206513"]
[BlackFideId "2119765"]
[WhiteElo "2245"]
[BlackElo "2168"]
[Result "0-1"]
[Round "07"]
[TimeControl "180+1"]
[Date "2022.11.23"]
[WhiteClock "0:00:07"]
[BlackClock "0:02:00"]

1. d4 {[%clk 0:02:58]}  d5 {[%clk 0:02:59]} 2. c4 {[%clk 0:02:57]}  dxc4 {[%clk 0:02:59]} 3. e4 {[%clk 0:02:55]}  Nf6 {[%clk 0:02:59]} 4. e5 {[%clk 0:02:49]}  Nd5 {[%clk 0:02:59]} 5. Bxc4 {[%clk 0:02:49]}  Nc6 {[%clk 0:02:57]} 6. Ne2 {[%clk 0:02:46]}  Nb6 {[%clk 0:02:54]} 7. Bb3 {[%clk 0:02:45]}  Bf5 {[%clk 0:02:53]} 8. Be3 {[%clk 0:02:38]}  e6 {[%clk 0:02:52]} 9. h4 {[%clk 0:02:35]}  Bb4+ {[%clk 0:02:49]} 10. Nbc3 {[%clk 0:02:35]}  O-O {[%clk 0:02:47]} 11. Ng3 {[%clk 0:02:27]}  Na5 {[%clk 0:02:44]} 12. Nxf5 {[%clk 0:02:23]}  exf5 {[%clk 0:02:43]} 13. Bc2 {[%clk 0:02:04]}  Nac4 {[%clk 0:02:39]} 14. Bxf5 {[%clk 0:01:42]}  Nxb2 {[%clk 0:02:38]} 15. Bxh7+ {[%clk 0:01:25]}  Kxh7 {[%clk 0:02:34]} 16. Qc2+ {[%clk 0:01:25]}  Kg8 {[%clk 0:02:31]} 17. Qxb2 {[%clk 0:01:21]}  a5 {[%clk 0:02:28]} 18. a3 {[%clk 0:01:04]}  Na4 {[%clk 0:02:25]} 19. Qc2 {[%clk 0:00:32]}  Bxc3+ {[%clk 0:02:25]} 20. Ke2 {[%clk 0:00:31]}  Bxa1 {[%clk 0:02:24]} 21. Qxa4 {[%clk 0:00:31]}  b5 {[%clk 0:02:15]} 22. Qd1 {[%clk 0:00:13]}  Bc3 {[%clk 0:02:11]} 23. Qd3 {[%clk 0:00:10]}  b4 {[%clk 0:02:10]} 24. h5 {[%clk 0:00:10]}  Qc8 {[%clk 0:02:08]} 25. f3 {[%clk 0:00:08]}  Qa6 {[%clk 0:02:08]} 26. h6 {[%clk 0:00:09]}  Qxd3+ {[%clk 0:02:08]} 27. Kxd3 {[%clk 0:00:09]}  gxh6 {[%clk 0:02:07]} 28. Rxh6 {[%clk 0:00:09]}  Rfd8 {[%clk 0:02:06]} 29. Bg5 {[%clk 0:00:09]}  Rxd4+ {[%clk 0:02:06]} 30. Ke3 {[%clk 0:00:09]}  Bd2+ {[%clk 0:02:03]} 31. Kxd4 {[%clk 0:00:09]}  Bxg5 {[%clk 0:02:03]} 32. Rc6 {[%clk 0:00:09]}  bxa3 {[%clk 0:02:02]} 33. Rc3 {[%clk 0:00:07]}  Be7 {[%clk 0:02:00]} 0-1


[Site "https://www.chess.com"]

[Event "Titled Tuesday Blitz November 22 Late 2022"]
[White "Corrales Jimenez, Fidel"]
[Black "Lizak, Peter"]
[WhiteFideId "3506690"]
[BlackFideId "731595"]
[WhiteElo "2541"]
[BlackElo "2420"]
[Result "1-0"]
[Round "07"]
[TimeControl "180+1"]
[Date "2022.11.23"]
[WhiteClock "0:01:47"]
[BlackClock "0:00:14"]

1. e4 {[%clk 0:02:58]}  c6 {[%clk 0:02:52]} 2. d4 {[%clk 0:02:57]}  d5 {[%clk 0:02:51]} 3. e5 {[%clk 0:02:57]}  Bf5 {[%clk 0:02:48]} 4. h4 {[%clk 0:02:57]}  h6 {[%clk 0:02:43]} 5. g4 {[%clk 0:02:56]}  Bd7 {[%clk 0:02:41]} 6. h5 {[%clk 0:02:56]}  c5 {[%clk 0:02:39]} 7. c3 {[%clk 0:02:56]}  Nc6 {[%clk 0:02:33]} 8. f4 {[%clk 0:02:53]}  cxd4 {[%clk 0:02:31]} 9. cxd4 {[%clk 0:02:51]}  Qb6 {[%clk 0:02:31]} 10. Be3 {[%clk 0:02:35]}  Qxb2 {[%clk 0:02:29]} 11. Nd2 {[%clk 0:02:30]}  Bxg4 {[%clk 0:02:26]} 12. Be2 {[%clk 0:02:30]}  Bf5 {[%clk 0:02:18]} 13. Rc1 {[%clk 0:02:21]}  e6 {[%clk 0:02:15]} 14. Kf2 {[%clk 0:02:20]}  Ba3 {[%clk 0:02:08]} 15. Nb3 {[%clk 0:02:18]}  Nge7 {[%clk 0:01:50]} 16. Nf3 {[%clk 0:02:17]}  Qxa2 {[%clk 0:01:34]} 17. Ra1 {[%clk 0:02:17]}  Qc2 {[%clk 0:01:11]} 18. Rxa3 {[%clk 0:02:16]}  Qxd1 {[%clk 0:01:08]} 19. Rxd1 {[%clk 0:02:14]}  Bg4 {[%clk 0:00:57]} 20. Rc1 {[%clk 0:02:14]}  Bxh5 {[%clk 0:00:56]} 21. Nc5 {[%clk 0:02:14]}  b6 {[%clk 0:00:54]} 22. Nb7 {[%clk 0:02:15]}  O-O {[%clk 0:00:52]} 23. Bb5 {[%clk 0:02:15]}  Na5 {[%clk 0:00:45]} 24. Nxa5 {[%clk 0:02:14]}  bxa5 {[%clk 0:00:45]} 25. Rxa5 {[%clk 0:02:11]}  Nf5 {[%clk 0:00:46]} 26. Bd3 {[%clk 0:02:09]}  Nxe3 {[%clk 0:00:43]} 27. Kxe3 {[%clk 0:02:09]}  Bxf3 {[%clk 0:00:41]} 28. Kxf3 {[%clk 0:02:10]}  Rfb8 {[%clk 0:00:40]} 29. Ke3 {[%clk 0:02:09]}  Rb3 {[%clk 0:00:40]} 30. Rc7 {[%clk 0:02:09]}  a6 {[%clk 0:00:38]} 31. Rc6 {[%clk 0:02:09]}  h5 {[%clk 0:00:35]} 32. Raxa6 {[%clk 0:02:10]}  Rab8 {[%clk 0:00:31]} 33. Rc7 {[%clk 0:02:06]}  h4 {[%clk 0:00:31]} 34. Raa7 {[%clk 0:02:06]}  Rf8 {[%clk 0:00:29]} 35. f5 {[%clk 0:02:06]}  exf5 {[%clk 0:00:24]} 36. e6 {[%clk 0:02:06]}  Re8 {[%clk 0:00:24]} 37. Rxf7 {[%clk 0:02:07]}  Rxe6+ {[%clk 0:00:24]} 38. Kd2 {[%clk 0:02:07]}  Rg6 {[%clk 0:00:22]} 39. Kc2 {[%clk 0:02:02]}  Rb8 {[%clk 0:00:17]} 40. Bxf5 {[%clk 0:01:59]}  Rg3 {[%clk 0:00:17]} 41. Be6 {[%clk 0:01:49]}  Kh8 {[%clk 0:00:17]} 42. Rf5 {[%clk 0:01:48]}  g6 {[%clk 0:00:14]} 43. Rff7 {[%clk 0:01:47]} 1-0


[Site "https://www.chess.com"]